fUST/lending_fUST_20260621
["ID","MTS","AMOUNT","RATE_DAILY","PERIOD"]
[425856576,1782006640000,-1371.39,0.00017631,2]
[425856588,1782006640000,-907.27,0.00017631,2]
[425856579,1782006640000,-1371.39,0.00017631,2]
[425856580,1782006640000,-1371.39,0.00017631,2]
[425856582,1782006640000,-151.0,0.00017631,2]
[425856592,1782006640000,-907.27,0.00017631,2]
[425856581,1782006640000,-1371.44298671,0.00017631,2]
[425856590,1782006640000,-907.27,0.00017631,2]
[425856594,1782006640000,-907.27,0.00017631,2]
[425856613,1782006640000,-907.27,0.00017631,2]
[425856586,1782006640000,-275.254184,0.00017631,2]
[425856597,1782006640000,-907.27,0.00017631,2]
[425856599,1782006640000,-907.27,0.00017631,2]
[425856603,1782006640000,-907.27,0.00017631,2]
[425856601,1782006640000,-907.27,0.00017631,2]
[425856605,1782006640000,-907.27,0.00017631,2]
[425856596,1782006640000,-151.0,0.00017631,2]
[425856608,1782006640000,-907.27,0.00017631,2]
[425856616,1782006640000,-907.27,0.00017631,2]
[425856609,1782006640000,-907.27,0.00017631,2]
[425856611,1782006640000,-907.27,0.00017631,2]
[425856538,1782006640000,-162.380719,0.00017621,2]
[425856577,1782006640000,-1371.39,0.00017631,2]
[425856574,1782006640000,-1371.39,0.00017631,2]
[425856575,1782006640000,-1371.39,0.00017631,2]
[425856569,1782006640000,-1371.39,0.00017631,2]
[425856539,1782006640000,-188.80851823,0.00017621,2]
[425856550,1782006640000,-500.0,0.00017631,2]
[425856540,1782006640000,-159.02794881,0.00017621,2]
[425856554,1782006640000,-500.0,0.00017631,2]
[425856549,1782006640000,-500.0,0.00017631,2]
[425856541,1782006640000,-500.0,0.00017631,2]
[425856543,1782006640000,-500.0,0.00017631,2]
[425856545,1782006640000,-500.0,0.00017631,2]
[425856547,1782006640000,-500.0,0.00017631,2]
[425856552,1782006640000,-500.0,0.00017631,2]
[425856553,1782006640000,-500.0,0.00017631,2]
[425856566,1782006640000,-1371.39,0.00017631,2]
[425856571,1782006640000,-1371.39,0.00017631,2]
[425856556,1782006640000,-500.0,0.00017631,2]
[425856565,1782006640000,-1371.39,0.00017631,2]
[425856568,1782006640000,-1371.39,0.00017631,2]
[425856578,1782006640000,-1371.39,0.00017631,2]
[425856561,1782006640000,-1371.39,0.00017631,2]
[425856555,1782006640000,-429.22296374,0.00017631,2]
[425856563,1782006640000,-1371.39,0.00017631,2]
[425856560,1782006640000,-1371.39,0.00017631,2]
[425856562,1782006640000,-1371.39,0.00017631,2]
[425856558,1782006640000,-19626.07102311,0.00017631,3]
[425856559,1782006640000,-1371.39,0.00017631,2]
[425856564,1782006640000,-1371.39,0.00017631,2]
[425856567,1782006640000,-1371.39,0.00017631,2]
[425856557,1782006640000,-501.83395472,0.00017631,2]
[425856618,1782006641000,-907.27,0.00017631,2]
[425856620,1782006641000,-907.27,0.00017631,2]
[425856622,1782006641000,-907.27,0.00017631,2]
[425856626,1782006641000,-907.27,0.00017631,2]
[425856624,1782006641000,-907.27,0.00017631,2]
[425856638,1782006641000,-350368.91372627,0.00017632,2]
[425856630,1782006641000,-907.27,0.00017631,2]
[425856636,1782006641000,-174.09419519,0.00017632,2]
[425856632,1782006641000,-907.27,0.00017631,2]
[425856634,1782006641000,-907.45867452,0.00017631,2]
[425856628,1782006641000,-907.27,0.00017631,2]
[425857275,1782007050000,778.03334564,0.00022903,120]
[425857276,1782007052000,152.73863821,0.00022903,120]
[425857277,1782007058000,265.54190631,0.00022903,120]
[425857279,1782007065000,206.91447899,0.00022903,30]
[425857280,1782007105000,249.94024332,0.00022887,110]
[425857283,1782007273000,-898.79932533,0.00012741,2]
[425857284,1782007355000,365.27212964,0.0001,2]
[425857311,1782007832000,-151.0,0.00011286,2]
[425857315,1782007832000,-5000.0,0.00011753,2]
[425857309,1782007832000,-151.0,0.00010947,2]
[425857321,1782007832000,-87.69050729,0.00013,2]
[425857319,1782007832000,-300.0,0.00012999,2]
[425857313,1782007832000,-4148.39151958,0.00011635,2]
[425857329,1782007832000,-433.45811007,0.00013,2]
[425857317,1782007832000,-161.91797313,0.00012872,2]
[425857498,1782007839000,-1000.0,0.00013699,2]
[425857475,1782007839000,-500.0,0.00013348,2]
[425857477,1782007839000,-577.93016764,0.00013348,2]
[425857480,1782007839000,-500.0,0.00013348,2]
[425857481,1782007839000,-500.0,0.00013348,2]
[425857483,1782007839000,-500.0,0.00013348,2]
[425857490,1782007839000,-500.0,0.00013348,2]
[425857488,1782007839000,-632.68132289,0.00013348,2]
[425857494,1782007839000,-500.0,0.00013348,2]
[425857492,1782007839000,-500.0,0.00013348,2]
[425857515,1782007839000,-262.84333527,0.00015913,2]
[425857496,1782007839000,-6518.7398944,0.0001335,2]
[425857504,1782007839000,-617.043496,0.00014439,2]
[425857502,1782007839000,-1646.47297929,0.00014339,2]
[425857505,1782007839000,-3584.0192286,0.00014789,2]
[425857508,1782007839000,-177.1193762,0.00015068,2]
[425857509,1782007839000,-1646.47297924,0.00015407,2]
[425857511,1782007839000,-259.3006873,0.00015439,2]
[425857513,1782007839000,-229.98791836,0.00015913,2]
[425857472,1782007839000,-500.0,0.00013348,2]
[425857517,1782007839000,-410.28201864,0.00015913,2]
[425857500,1782007839000,-542.67662385,0.00014136,2]
[425857473,1782007839000,-500.0,0.00013348,2]
[425857450,1782007839000,-300.0,0.00013259,2]
[425857470,1782007839000,-500.0,0.00013348,2]
[425857430,1782007839000,-300.0,0.00013259,2]
[425857428,1782007839000,-300.0,0.00013259,2]
[425857432,1782007839000,-300.0,0.00013259,2]
[425857424,1782007839000,-300.0,0.00013259,2]
[425857422,1782007839000,-300.0,0.00013259,2]
[425857426,1782007839000,-300.0,0.00013259,2]
[425857434,1782007839000,-300.0,0.00013259,2]
[425857436,1782007839000,-300.0,0.00013259,2]
[425857438,1782007839000,-300.0,0.00013259,2]
[425857519,1782007839000,-458.0290866,0.00016331,2]
[425857466,1782007839000,-500.0,0.00013348,2]
[425857440,1782007839000,-300.0,0.00013259,2]
[425857458,1782007839000,-630.82346951,0.00013348,2]
[425857448,1782007839000,-300.0,0.00013259,2]
[425857452,1782007839000,-500.0,0.00013348,2]
[425857446,1782007839000,-300.0,0.00013259,2]
[425857420,1782007839000,-7131.89324985,0.00013,2]
[425857454,1782007839000,-227.04676042,0.00013348,2]
[425857460,1782007839000,-500.0,0.00013348,2]
[425857462,1782007839000,-500.0,0.00013348,2]
[425857464,1782007839000,-500.0,0.00013348,2]
[425857468,1782007839000,-500.0,0.00013348,2]
[425857444,1782007839000,-300.0,0.00013259,2]
[425857521,1782007839000,-12462.66949026,0.00016338,2]
[425857442,1782007839000,-300.0,0.00013259,2]
[425857523,1782007839000,-457.20020938,0.00016437,2]
[425857570,1782007839000,-500.0,0.00016438,2]
[425857579,1782007839000,-500.0,0.00016438,2]
[425857581,1782007839000,-1002.21641979,0.00016438,2]
[425857586,1782007839000,-500.0,0.00016438,2]
[425857591,1782007839000,-501.06927026,0.00016438,2]
[425857588,1782007839000,-500.0,0.00016438,2]
[425857593,1782007839000,-500.0,0.00016438,2]
[425857589,1782007839000,-500.0,0.00016438,2]
[425857600,1782007839000,-500.0,0.00016438,2]
[425857584,1782007839000,-516.70973128,0.00016438,2]
[425857568,1782007839000,-501.97004394,0.00016438,2]
[425857596,1782007839000,-508.142087,0.00016438,2]
[425857604,1782007839000,-500.0,0.00016438,2]
[425857606,1782007839000,-500.0,0.00016438,2]
[425857619,1782007839000,-500.0,0.00016438,2]
[425857617,1782007839000,-500.0,0.00016438,2]
[425857620,1782007839000,-500.0,0.00016438,2]
[425857608,1782007839000,-500.0,0.00016438,2]
[425857610,1782007839000,-500.0,0.00016438,2]
[425857613,1782007839000,-500.0,0.00016438,2]
[425857615,1782007839000,-500.0,0.00016438,2]
[425857524,1782007839000,-500.0,0.00016438,2]
[425857602,1782007839000,-500.0,0.00016438,2]
[425857566,1782007839000,-513.38462509,0.00016438,2]
[425857456,1782007839000,-500.0,0.00013348,2]
[425857576,1782007839000,-504.8632206,0.00016438,2]
[425857528,1782007839000,-500.0,0.00016438,2]
[425857574,1782007839000,-500.0,0.00016438,2]
[425857530,1782007839000,-506.84565032,0.00016438,2]
[425857526,1782007839000,-509.83395547,0.00016438,2]
[425857534,1782007839000,-508.69337762,0.00016438,2]
[425857532,1782007839000,-500.0,0.00016438,2]
[425857547,1782007839000,-500.0,0.00016438,2]
[425857549,1782007839000,-500.0,0.00016438,2]
[425857553,1782007839000,-500.0,0.00016438,2]
[425857542,1782007839000,-516.96776924,0.00016438,2]
[425857540,1782007839000,-263.35963876,0.00016438,2]
[425857536,1782007839000,-500.0,0.00016438,2]
[425857551,1782007839000,-505.74997522,0.00016438,2]
[425857543,1782007839000,-509.36596845,0.00016438,2]
[425857577,1782007839000,-500.0,0.00016438,2]
[425857572,1782007839000,-509.90293597,0.00016438,2]
[425857561,1782007839000,-504.37339963,0.00016438,2]
[425857562,1782007839000,-500.0,0.00016438,2]
[425857564,1782007839000,-507.00807868,0.00016438,2]
[425857556,1782007839000,-500.0,0.00016438,2]
[425857555,1782007839000,-500.0,0.00016438,2]
[425857545,1782007839000,-500.0,0.00016438,2]
[425857538,1782007839000,-511.48314356,0.00016438,2]
[425857558,1782007839000,-500.0,0.00016438,2]
[425857702,1782007840000,-500.0,0.00016438,2]
[425857695,1782007840000,-504.83176307,0.00016438,2]
[425857704,1782007840000,-500.0,0.00016438,2]
[425857700,1782007840000,-500.0,0.00016438,2]
[425857697,1782007840000,-500.0,0.00016438,2]
[425857683,1782007840000,-500.0,0.00016438,2]
[425857685,1782007840000,-500.0,0.00016438,2]
[425857689,1782007840000,-1000.0,0.00016438,2]
[425857693,1782007840000,-500.0,0.00016438,2]
[425857691,1782007840000,-500.0,0.00016438,2]
[425857719,1782007840000,-500.0,0.00016438,2]
[425857698,1782007840000,-500.0,0.00016438,2]
[425857709,1782007840000,-500.0,0.00016438,2]
[425857733,1782007840000,-500.0,0.00016438,2]
[425857706,1782007840000,-500.0,0.00016438,2]
[425857714,1782007840000,-500.0,0.00016438,2]
[425857716,1782007840000,-525.13961744,0.00016438,2]
[425857721,1782007840000,-500.0,0.00016438,2]
[425857711,1782007840000,-500.0,0.00016438,2]
[425857723,1782007840000,-521.18578441,0.00016438,2]
[425857725,1782007840000,-500.0,0.00016438,2]
[425857727,1782007840000,-500.0,0.00016438,2]
[425857729,1782007840000,-396.32762182,0.00016438,2]
[425857731,1782007840000,-605.80116566,0.00016438,2]
[425857737,1782007840000,-500.0,0.00016438,2]
[425857681,1782007840000,-500.0,0.00016438,2]
[425857739,1782007840000,-500.0,0.00016438,2]
[425857707,1782007840000,-431.52252768,0.00016438,2]
[425857687,1782007840000,-500.0,0.00016438,2]
[425857658,1782007840000,-500.0,0.00016438,2]
[425857677,1782007840000,-500.0,0.00016438,2]
[425857624,1782007840000,-508.57784929,0.00016438,2]
[425857623,1782007840000,-500.0,0.00016438,2]
[425857626,1782007840000,-500.0,0.00016438,2]
[425857629,1782007840000,-503.0423557,0.00016438,2]
[425857641,1782007840000,-500.0,0.00016438,2]
[425857631,1782007840000,-500.0,0.00016438,2]
[425857644,1782007840000,-500.0,0.00016438,2]
[425857646,1782007840000,-500.0,0.00016438,2]
[425857637,1782007840000,-500.0,0.00016438,2]
[425857635,1782007840000,-500.0,0.00016438,2]
[425857643,1782007840000,-500.0,0.00016438,2]
[425857639,1782007840000,-506.50523181,0.00016438,2]
[425857633,1782007840000,-500.0,0.00016438,2]
[425857679,1782007840000,-500.0,0.00016438,2]
[425857650,1782007840000,-500.0,0.00016438,2]
[425857652,1782007840000,-500.0,0.00016438,2]
[425857654,1782007840000,-500.0,0.00016438,2]
[425857735,1782007840000,-500.0,0.00016438,2]
[425857656,1782007840000,-500.0,0.00016438,2]
[425857660,1782007840000,-500.0,0.00016438,2]
[425857662,1782007840000,-500.0,0.00016438,2]
[425857670,1782007840000,-500.0,0.00016438,2]
[425857664,1782007840000,-500.0,0.00016438,2]
[425857673,1782007840000,-500.0,0.00016438,2]
[425857666,1782007840000,-500.0,0.00016438,2]
[425857672,1782007840000,-500.0,0.00016438,2]
[425857668,1782007840000,-500.0,0.00016438,2]
[425857675,1782007840000,-500.0,0.00016438,2]
[425857648,1782007840000,-500.0,0.00016438,2]
[425857747,1782007840000,-500.0,0.00016438,2]
[425857717,1782007840000,-500.0,0.00016438,2]
[425857742,1782007840000,-508.81103154,0.00016438,2]
[425857813,1782007840000,-500.0,0.00016438,2]
[425857816,1782007840000,-500.0,0.00016438,2]
[425857820,1782007840000,-1541.51308554,0.00016526,2]
[425857822,1782007840000,-3919.150701,0.00016539,2]
[425857814,1782007840000,-500.0,0.00016438,2]
[425857824,1782007840000,-910.7521,0.00016575,2]
[425857818,1782007840000,-1646.47297924,0.00016476,2]
[425857826,1782007840000,-500.0,0.00016616,2]
[425857828,1782007840000,-432.01836181,0.00016616,2]
[425857829,1782007840000,-500.0,0.00016617,2]
[425857831,1782007840000,-500.0,0.00016617,2]
[425857837,1782007840000,-500.0,0.00016617,2]
[425857841,1782007840000,-500.0,0.00016617,2]
[425857811,1782007840000,-500.0,0.00016438,2]
[425857843,1782007840000,-500.0,0.00016617,2]
[425857833,1782007840000,-500.0,0.00016617,2]
[425857847,1782007840000,-500.0,0.00016617,2]
[425857849,1782007840000,-500.0,0.00016617,2]
[425857845,1782007840000,-500.0,0.00016617,2]
[425857853,1782007840000,-505.11912535,0.00016617,2]
[425857851,1782007840000,-500.0,0.00016617,2]
[425857855,1782007840000,-500.0,0.00016617,2]
[425857865,1782007840000,-500.0,0.00016617,2]
[425857858,1782007840000,-500.0,0.00016617,2]
[425857856,1782007840000,-500.0,0.00016617,2]
[425857860,1782007840000,-500.0,0.00016617,2]
[425857749,1782007840000,-290.15626346,0.00016438,2]
[425857862,1782007840000,-500.0,0.00016617,2]
[425857835,1782007840000,-500.0,0.00016617,2]
[425857809,1782007840000,-332.35172823,0.00016438,2]
[425857839,1782007840000,-500.0,0.00016617,2]
[425857805,1782007840000,-500.0,0.00016438,2]
[425857751,1782007840000,-500.0,0.00016438,2]
[425857807,1782007840000,-500.0,0.00016438,2]
[425857744,1782007840000,-500.0,0.00016438,2]
[425857753,1782007840000,-500.0,0.00016438,2]
[425857755,1782007840000,-559.40764289,0.00016438,2]
[425857757,1782007840000,-500.0,0.00016438,2]
[425857759,1782007840000,-558.54,0.00016438,2]
[425857761,1782007840000,-500.0,0.00016438,2]
[425857769,1782007840000,-500.0,0.00016438,2]
[425857763,1782007840000,-514.28609132,0.00016438,2]
[425857765,1782007840000,-500.0,0.00016438,2]
[425857767,1782007840000,-517.50834311,0.00016438,2]
[425857771,1782007840000,-500.0,0.00016438,2]
[425857775,1782007840000,-500.0,0.00016438,2]
[425857773,1782007840000,-500.0,0.00016438,2]
[425857745,1782007840000,-500.0,0.00016438,2]
[425857801,1782007840000,-500.0,0.00016438,2]
[425857777,1782007840000,-500.0,0.00016438,2]
[425857803,1782007840000,-500.0,0.00016438,2]
[425857800,1782007840000,-511.00969075,0.00016438,2]
[425857790,1782007840000,-500.0,0.00016438,2]
[425857796,1782007840000,-500.0,0.00016438,2]
[425857788,1782007840000,-618.43948679,0.00016438,2]
[425857798,1782007840000,-500.0,0.00016438,2]
[425857785,1782007840000,-500.0,0.00016438,2]
[425857794,1782007840000,-500.0,0.00016438,2]
[425857781,1782007840000,-500.0,0.00016438,2]
[425857779,1782007840000,-500.0,0.00016438,2]
[425857792,1782007840000,-500.0,0.00016438,2]
[425857953,1782007841000,-368.17311188,0.00016712,2]
[425857969,1782007841000,-500.0,0.00016712,2]
[425857965,1782007841000,-500.0,0.00016712,2]
[425857960,1782007841000,-504.88756293,0.00016712,2]
[425857951,1782007841000,-500.0,0.00016712,2]
[425857991,1782007841000,-502.66495661,0.00016712,2]
[425857942,1782007841000,-500.0,0.00016712,2]
[425857940,1782007841000,-500.0,0.00016712,2]
[425857936,1782007841000,-500.0,0.00016712,2]
[425857945,1782007841000,-500.0,0.00016712,2]
[425857949,1782007841000,-500.0,0.00016712,2]
[425857947,1782007841000,-500.0,0.00016712,2]
[425857967,1782007841000,-500.0,0.00016712,2]
[425857962,1782007841000,-500.0,0.00016712,2]
[425857971,1782007841000,-500.0,0.00016712,2]
[425857957,1782007841000,-500.0,0.00016712,2]
[425857974,1782007841000,-152.144,0.00016712,2]
[425857955,1782007841000,-500.0,0.00016712,2]
[425857959,1782007841000,-580.66196504,0.00016712,2]
[425857976,1782007841000,-500.0,0.00016712,2]
[425857982,1782007841000,-502.55039176,0.00016712,2]
[425857978,1782007841000,-507.29980801,0.00016712,2]
[425857980,1782007841000,-500.0,0.00016712,2]
[425857871,1782007841000,-500.0,0.00016617,2]
[425857989,1782007841000,-500.0,0.00016712,2]
[425857987,1782007841000,-506.71475511,0.00016712,2]
[425857938,1782007841000,-498.46002888,0.00016712,2]
[425857972,1782007841000,-509.28203692,0.00016712,2]
[425857932,1782007841000,-500.0,0.00016712,2]
[425857867,1782007841000,-390.87487298,0.00016617,2]
[425857930,1782007841000,-500.0,0.00016712,2]
[425857986,1782007841000,-500.0,0.00016712,2]
[425857869,1782007841000,-516.24559121,0.00016617,2]
[425857873,1782007841000,-500.0,0.00016617,2]
[425857875,1782007841000,-500.0,0.00016617,2]
[425857877,1782007841000,-151.0,0.00016617,2]
[425857879,1782007841000,-312.775362,0.00016617,2]
[425857883,1782007841000,-312.775362,0.00016617,2]
[425857881,1782007841000,-312.775362,0.00016617,2]
[425857888,1782007841000,-312.775362,0.00016617,2]
[425857890,1782007841000,-500.0,0.00016617,2]
[425857892,1782007841000,-151.0,0.00016617,2]
[425857894,1782007841000,-500.0,0.00016617,2]
[425857896,1782007841000,-151.0,0.00016617,2]
[425857934,1782007841000,-209.84735168,0.00016712,2]
[425857898,1782007841000,-500.0,0.00016617,2]
[425857904,1782007841000,-504.4288716,0.00016617,2]
[425857906,1782007841000,-151.0,0.00016617,2]
[425857902,1782007841000,-151.0,0.00016617,2]
[425857915,1782007841000,-506.62790665,0.00016712,2]
[425857913,1782007841000,-500.0,0.00016712,2]
[425857919,1782007841000,-500.0,0.00016712,2]
[425857917,1782007841000,-500.0,0.00016712,2]
[425857908,1782007841000,-500.0,0.00016617,2]
[425857910,1782007841000,-500.0,0.00016712,2]
[425857921,1782007841000,-512.48163909,0.00016712,2]
[425857923,1782007841000,-500.0,0.00016712,2]
[425857926,1782007841000,-501.2779647,0.00016712,2]
[425857928,1782007841000,-500.0,0.00016712,2]
[425857900,1782007841000,-151.0,0.00016617,2]
[425857984,1782007841000,-502.32799619,0.00016712,2]
[425858005,1782007841000,-500.0,0.00016712,2]
[425857999,1782007841000,-500.0,0.00016712,2]
[425858045,1782007841000,-500.0,0.00016712,2]
[425858049,1782007841000,-500.0,0.00016712,2]
[425858051,1782007841000,-500.0,0.00016712,2]
[425858053,1782007841000,-500.0,0.00016712,2]
[425858068,1782007841000,-505.38762799,0.00016712,2]
[425858065,1782007841000,-500.0,0.00016712,2]
[425858067,1782007841000,-500.0,0.00016712,2]
[425858047,1782007841000,-502.47318805,0.00016712,2]
[425858070,1782007841000,-500.0,0.00016712,2]
[425858072,1782007841000,-500.0,0.00016712,2]
[425858076,1782007841000,-500.0,0.00016712,2]
[425858086,1782007841000,-492.82839157,0.00016712,2]
[425858094,1782007841000,-206.76726305,0.00016712,2]
[425858063,1782007841000,-500.0,0.00016712,2]
[425858074,1782007841000,-500.0,0.00016712,2]
[425858080,1782007841000,-312.775362,0.00016712,2]
[425858082,1782007841000,-312.775362,0.00016712,2]
[425858090,1782007841000,-504.45059864,0.00016712,2]
[425858088,1782007841000,-558.54,0.00016712,2]
[425858084,1782007841000,-312.775362,0.00016712,2]
[425858078,1782007841000,-312.775362,0.00016712,2]
[425858098,1782007841000,-500.0,0.00016712,2]
[425858096,1782007841000,-500.0,0.00016712,2]
[425858099,1782007841000,-151.0,0.00016712,2]
[425858101,1782007841000,-151.0,0.00016712,2]
[425858103,1782007841000,-500.0,0.00016712,2]
[425858105,1782007841000,-500.0,0.00016712,2]
[425857995,1782007841000,-502.91316136,0.00016712,2]
[425858092,1782007841000,-500.0,0.00016712,2]
[425858061,1782007841000,-500.0,0.00016712,2]
[425858030,1782007841000,-500.0,0.00016712,2]
[425858059,1782007841000,-151.0,0.00016712,2]
[425857993,1782007841000,-506.33305077,0.00016712,2]
[425858057,1782007841000,-525.53705536,0.00016712,2]
[425857997,1782007841000,-503.84603775,0.00016712,2]
[425858001,1782007841000,-500.0,0.00016712,2]
[425858003,1782007841000,-500.0,0.00016712,2]
[425858007,1782007841000,-500.0,0.00016712,2]
[425858009,1782007841000,-500.0,0.00016712,2]
[425858011,1782007841000,-500.0,0.00016712,2]
[425858013,1782007841000,-500.0,0.00016712,2]
[425858018,1782007841000,-500.0,0.00016712,2]
[425858019,1782007841000,-500.0,0.00016712,2]
[425858021,1782007841000,-501.23285863,0.00016712,2]
[425858020,1782007841000,-500.0,0.00016712,2]
[425858017,1782007841000,-500.0,0.00016712,2]
[425858015,1782007841000,-500.0,0.00016712,2]
[425858024,1782007841000,-507.57643512,0.00016712,2]
[425858026,1782007841000,-505.68665179,0.00016712,2]
[425858022,1782007841000,-503.65408215,0.00016712,2]
[425858040,1782007841000,-500.0,0.00016712,2]
[425858028,1782007841000,-501.33011742,0.00016712,2]
[425858029,1782007841000,-509.53272701,0.00016712,2]
[425858055,1782007841000,-502.7560879,0.00016712,2]
[425858038,1782007841000,-500.0,0.00016712,2]
[425858034,1782007841000,-500.0,0.00016712,2]
[425858027,1782007841000,-1000.0,0.00016712,2]
[425858023,1782007841000,-500.0,0.00016712,2]
[425858036,1782007841000,-500.0,0.00016712,2]
[425858042,1782007841000,-500.0,0.00016712,2]
[425858032,1782007841000,-505.59230834,0.00016712,2]
[425858193,1782007842000,-500.0,0.00016891,2]
[425858187,1782007842000,-1206.27415039,0.00016872,2]
[425858189,1782007842000,-504.69131887,0.0001689,2]
[425858185,1782007842000,-600.0,0.00016766,2]
[425858178,1782007842000,-2509.49,0.00016765,2]
[425858174,1782007842000,-500.0,0.00016765,2]
[425858180,1782007842000,-500.0,0.00016765,2]
[425858183,1782007842000,-500.0,0.00016765,2]
[425858172,1782007842000,-500.0,0.00016765,2]
[425858199,1782007842000,-500.0,0.00016891,2]
[425858176,1782007842000,-500.0,0.00016765,2]
[425858195,1782007842000,-500.0,0.00016891,2]
[425858219,1782007842000,-500.0,0.00016891,2]
[425858191,1782007842000,-508.55378423,0.00016891,2]
[425858207,1782007842000,-500.0,0.00016891,2]
[425858209,1782007842000,-500.0,0.00016891,2]
[425858201,1782007842000,-500.0,0.00016891,2]
[425858203,1782007842000,-500.0,0.00016891,2]
[425858211,1782007842000,-500.0,0.00016891,2]
[425858204,1782007842000,-500.0,0.00016891,2]
[425858212,1782007842000,-500.0,0.00016891,2]
[425858214,1782007842000,-292.95580864,0.00016891,2]
[425858216,1782007842000,-500.0,0.00016891,2]
[425858227,1782007842000,-500.0,0.00016891,2]
[425858170,1782007842000,-535.40687191,0.00016765,2]
[425858197,1782007842000,-500.0,0.00016891,2]
[425858168,1782007842000,-510.55169177,0.00016765,2]
[425858136,1782007842000,-500.0,0.00016712,2]
[425858164,1782007842000,-500.0,0.00016765,2]
[425858106,1782007842000,-500.0,0.00016712,2]
[425858108,1782007842000,-500.0,0.00016712,2]
[425858110,1782007842000,-500.0,0.00016712,2]
[425858112,1782007842000,-500.0,0.00016712,2]
[425858114,1782007842000,-500.0,0.00016712,2]
[425858117,1782007842000,-151.0,0.00016712,2]
[425858119,1782007842000,-500.0,0.00016712,2]
[425858116,1782007842000,-515.98387539,0.00016712,2]
[425858123,1782007842000,-500.0,0.00016712,2]
[425858124,1782007842000,-500.0,0.00016712,2]
[425858126,1782007842000,-500.0,0.00016712,2]
[425858129,1782007842000,-500.0,0.00016712,2]
[425858134,1782007842000,-500.0,0.00016712,2]
[425858138,1782007842000,-500.0,0.00016712,2]
[425858121,1782007842000,-151.0,0.00016712,2]
[425858223,1782007842000,-500.0,0.00016891,2]
[425858143,1782007842000,-289.87,0.0001675,2]
[425858147,1782007842000,-275.16079804,0.0001675,2]
[425858149,1782007842000,-489.17475207,0.0001675,2]
[425858145,1782007842000,-152.86711002,0.0001675,2]
[425858140,1782007842000,-500.0,0.00016712,2]
[425858160,1782007842000,-500.0,0.00016765,2]
[425858151,1782007842000,-763.57121455,0.0001675,2]
[425858158,1782007842000,-500.0,0.00016765,2]
[425858153,1782007842000,-500.0,0.00016765,2]
[425858156,1782007842000,-504.98493139,0.00016765,2]
[425858162,1782007842000,-500.0,0.00016765,2]
[425858166,1782007842000,-500.0,0.00016765,2]
[425858225,1782007842000,-500.0,0.00016891,2]
[425858236,1782007842000,-500.0,0.00016891,2]
[425858221,1782007842000,-500.0,0.00016891,2]
[425858305,1782007842000,-500.0,0.00016986,2]
[425858286,1782007842000,-312.22905292,0.00016986,2]
[425858307,1782007842000,-500.0,0.00016986,2]
[425858297,1782007842000,-507.34193791,0.00016986,2]
[425858309,1782007842000,-500.0,0.00016986,2]
[425858299,1782007842000,-502.29853329,0.00016986,2]
[425858301,1782007842000,-509.54009404,0.00016986,2]
[425858229,1782007842000,-504.35370004,0.00016891,2]
[425858313,1782007842000,-500.0,0.00016986,2]
[425858311,1782007842000,-515.93446964,0.00016986,2]
[425858315,1782007842000,-500.0,0.00016986,2]
[425858321,1782007842000,-500.0,0.00016986,2]